[Event "Karel Janecek Open 2024"]
[Site "Prague"]
[Date "2024.02.28"]
[Round "1.12"]
[White "Sofronie, Vladimir"]
[Black "Maksimovic, Bojan"]
[Result "0-1"]
[ECO "A45"]
[WhiteElo "1927"]
[BlackElo "2497"]
[Annotator "RC"]
[PlyCount "182"]
[EventDate "2024.02.22"]
[EventType "swiss"]
[EventCountry "CZE"]
[SourceTitle "playchess.com"]
[Source "ChessBase"]
[SourceQuality "1"]
[TimeControl "40/5400+30:1800+30"]

1. d4 {[%emt 0:00:05]} Nf6 {[%emt 0:00:12]} 2. Bf4 {[%emt 0:00:11]} g6 {[%emt 0:00:45]} 3. Nc3 {[%emt 0:00:07]} Nh5 {[%emt 0:01:09]} 4. Bg5 {[%emt 0:02:34]} h6 {[%emt 0:03:24]} 5. Bh4 {[%emt 0:00:28]} Bg7 {[%emt 0:01:00]} 6. e4 {[%emt 0:04:04]} d6 {[%emt 0:03:02]} 7. Qd2 {[%emt 0:07:55]} g5 {[%emt 0:06:58]} 8. Bg3 {[%emt 0:00:41]} Nd7 {[%emt 0:03:10]} 9. Nf3 {[%emt 0:05:08]} c5 {[%emt 0:03:12]} 10. d5 {[%emt 0:02:32]} Qa5 {[%emt 0:06:57]} 11. Be2 {[%emt 0:06:58]} Bxc3 {[%emt 0:19:34]} 12. bxc3 {[%emt 0:01:20]} Ndf6 {[%emt 0:01:13]} 13. c4 {[%emt 0:05:14]} Qxd2+ {[%emt 0:00:14]} 14. Nxd2 {[%emt 0:00:08]} Nxg3 {[%emt 0:00:29]} 15. hxg3 {[%emt 0:00:07]} e5 {[%emt 0:00:52]} 16. f3 {[%emt 0:02:03]} Ke7 {[%emt 0:02:35]} 17. Nf1 {[%emt 0:01:08]} Bd7 {[%emt 0:01:08]} 18. Ne3 {[%emt 0:00:57]} h5 {[%emt 0:00:37]} 19. Kf2 {[%emt 0:01:17]} Rag8 {[%emt 0:02:04]} 20. Rab1 {[%emt 0:01:19]} Bc8 {[%emt 0:00:29]} 21. Rh2 {[%emt 0:04:54]} Rh7 {[%emt 0:00:13]} 22. Bd3 {[%emt 0:08:25]} Kd8 {[%emt 0:02:14]} 23. Rhh1 {[%emt 0:03:56]} Kc7 {[%emt 0:00:27]} 24. Rb2 {[%emt 0:03:20]} Rgh8 {[%emt 0:01:06]} 25. Rbb1 {[%emt 0:01:29]} Bd7 {[%emt 0:01:35]} 26. c3 {[%emt 0:02:50]} Ng8 {[%emt 0:01:26]} 27. Rh2 {[%emt 0:06:11]} Ne7 {[%emt 0:01:12]} 28. Rbh1 {[%emt 0:00:19]} Ba4 {[%emt 0:03:15]} 29. Ke2 {[%emt 0:02:16]} f6 {[%emt 0:02:06]} 30. Kd2 {[%emt 0:02:01]} Be8 {[%emt 0:01:31]} 31. Be2 {[%emt 0:02:58]} Bg6 {[%emt 0:01:32]} 32. Bd3 {[%emt 0:00:51]} Rg8 {[%emt 0:04:15]} 33. Ke2 {[%emt 0:01:39]} Rf8 {[%emt 0:02:33]} 34. Bc2 {[%emt 0:01:07]} Be8 {[%emt 0:02:29]} 35. Bd3 {[%emt 0:00:16]} Rfh8 {[%emt 0:00:24]} 36. Kd2 {[%emt 0:01:02]} Bd7 {[%emt 0:00:53]} 37. Ke2 {[%emt 0:00:52]} Kd8 {[%emt 0:02:42]} 38. Kf2 {[%emt 0:02:05]} Bc8 {[%emt 0:03:14]} 39. Ke1 {[%emt 0:00:01]} Ke8 {[%emt 0:00:12]} 40. Kf2 {[%emt 0:01:22]} Kf7 {[%emt 0:01:36]} 41. Ke2 {[%emt 0:30:30]} Kg7 42. Kf2 {[%emt 0:00:30]} Ng6 {[%emt 0:31:00]} 43. Bc2 {[%emt 0:00:36]} Kg8 {[%emt 0:02:29]} 44. Bd3 {[%emt 0:00:29]} h4 {[%emt 0:01:11]} 45. Bc2 {[%emt 0:01:06]} hxg3+ {[%emt 0:00:33]} 46. Kxg3 {[%emt 0:00:10]} Rh4 {[%emt 0:00:45]} 47. Nf1 {[%emt 0:02:08]} Kg7 {[%emt 0:01:13]} 48. Kf2 {[%emt 0:00:42]} Rxh2 {[%emt 0:05:10]} 49. Rxh2 {[%emt 0:00:39]} g4 {[%emt 0:00:12]} 50. Rxh8 {[%emt 0:00:11]} Nxh8 {[%emt 0:00:15]} 51. Ng3 {[%emt 0:01:09]} gxf3 {[%emt 0:00:55]} 52. gxf3 {[%emt 0:00:07]} Kh6 {[%emt 0:00:13]} 53. Ne2 {[%emt 0:01:07]} Ng6 {[%emt 0:00:18]} 54. Ba4 {[%emt 0:01:04]} Kg5 {[%emt 0:00:37]} 55. Kg3 {[%emt 0:00:15]} f5 {[%emt 0:01:40]} 56. Bc2 {[%emt 0:05:15]} fxe4 {[%emt 0:01:57]} 57. Bxe4 {[%emt 0:00:18]} Nf4 {[%emt 0:00:10]} 58. Nxf4 {[%emt 0:00:39]} exf4+ {[%emt 0:00:08]} 59. Kf2 {[%emt 0:01:14]} Bd7 {[%emt 0:00:49]} 60. Bc2 {[%emt 0:02:02]} b5 {[%emt 0:01:56]} 61. Bd3 {[%emt 0:00:54]} bxc4 {[%emt 0:00:29]} 62. Bxc4 {[%emt 0:00:19]} Kf5 {[%emt 0:00:12]} 63. Ke2 {[%emt 0:03:31]} Ke5 {[%emt 0:00:15]} 64. Bb3 {[%emt 0:00:31]} Bf5 {[%emt 0:00:15]} 65. a3 {[%emt 0:01:22]} Bg6 {[%emt 0:00:12]} 66. Kd2 {[%emt 0:00:43]} Bf7 {[%emt 0:00:17]} 67. Kd3 {[%emt 0:00:27]} Bxd5 {[%emt 0:00:16]} 68. Bd1 {[%emt 0:00:22]} c4+ {[%emt 0:02:14]} 69. Kd2 {[%emt 0:00:06]} Be6 {[%emt 0:00:24]} 70. Ba4 {[%emt 0:01:56]} d5 {[%emt 0:00:29]} 71. Bc6 {[%emt 0:01:03]} Kd6 {[%emt 0:00:23]} 72. Ba4 {[%emt 0:00:10]} Kc5 {[%emt 0:00:11]} 73. Bc2 {[%emt 0:00:10]} Bf7 {[%emt 0:01:19]} 74. Bf5 {[%emt 0:00:41]} Bh5 {[%emt 0:00:06]} 75. Ke2 {[%emt 0:00:10]} d4 {[%emt 0:00:08]} 76. Be4 {[%emt 0:01:03]} dxc3 {[%emt 0:00:15]} 77. Bf5 {[%emt 0:00:23]} Kd4 {[%emt 0:00:05]} 78. Bc2 {[%emt 0:00:46]} Be8 {[%emt 0:00:08]} 79. Kf2 {[%emt 0:00:12]} Bd7 {[%emt 0:00:15]} 80. Ke2 {[%emt 0:00:07]} Ke5 {[%emt 0:00:14]} 81. Ke1 {[%emt 0:00:36]} Bf5 {[%emt 0:00:09]} 82. Ba4 {[%emt 0:00:04]} Kd4 {[%emt 0:00:05]} 83. Kd1 {[%emt 0:00:25]} Ke3 {[%emt 0:00:06]} 84. Bc6 {[%emt 0:00:03]} Bd3 {[%emt 0:00:07]} 85. Bd5 {[%emt 0:00:18]} Be2+ {[%emt 0:00:09]} 86. Kc2 {[%emt 0:00:25]} Bxf3 {[%emt 0:00:07]} 87. Bxc4 {[%emt 0:00:09]} Kd4 {[%emt 0:00:12]} 88. Bf1 {[%emt 0:00:12]} Be4+ {[%emt 0:00:05]} 89. Kc1 {[%emt 0:00:18]} f3 {[%emt 0:00:09]} 90. a4 {[%emt 0:00:21]} f2 {[%emt 0:00:08]} 91. a5 {[%emt 0:00:10]} Bd3 {[%emt 0:00:07]} 0-1

[Event "Karel Janecek Open 2024"]
[Site "Prague"]
[Date "2024.02.28"]
[Round "1.13"]
[White "Quintiliano, Renato R."]
[Black "Kurek, Pavel"]
[Result "1-0"]
[ECO "E61"]
[WhiteElo "2493"]
[BlackElo "1991"]
[Annotator "TA"]
[PlyCount "93"]
[EventDate "2024.02.22"]
[EventType "swiss"]
[EventCountry "CZE"]
[SourceTitle "playchess.com"]
[Source "ChessBase"]
[SourceQuality "1"]
[TimeControl "40/5400+30:1800+30"]

{[%evp 12,93,2,16,15,0,58,66,59,60,70,64,106,101,116,89,122,135,131,114,118,120,136,119,126,102,101,94,100,87,369,263,361,360,431,401,402,369,451,73,557,555,647,612,763,758,778,766,730,747,1083,815,854,827,754,858,670,636,931,924,895,717,859,889,772,589,658,641,623,629,923,726,5739,5393,12813,6041,5702,5611,5392,5392,1894,924,29987,29988]} 1. d4 {[%emt 0:00:18]} Nf6 {[%emt 0:00:12]} 2. c4 {[%emt 0:00:22]} d6 {[%emt 0:01:09]} 3. Nf3 {[%emt 0:00:25]} g6 {[%emt 0:00:59]} 4. Nc3 {[%emt 0:01:41]} Bg7 {[%emt 0:00:21]} 5. Bg5 {[%emt 0:00:21]} O-O {[%emt 0:00:52]} 6. e3 {[%emt 0:00:08]} c5 {[%emt 0:05:12]} 7. d5 {[%emt 0:01:12]} Bf5 {[%emt 0:02:36]} 8. Nd2 {[%emt 0:10:19]} Bd7 {[%emt 0:08:04]} (8... h6 $11 9. Bxf6 exf6 (9... Bxf6 10. Be2 $11)) 9. Be2 {[%emt 0:00:51]} Na6 {[%emt 0:00:11] White is slightly better.} 10. O-O {[%emt 0:00:38]} Nc7 {[%emt 0:00:42][%cal Ob7b5]} 11. e4 {[%emt 0:05:34]} Re8 {[%emt 0:03:07]} 12. f4 {[%emt 0:10:24] e5 would now be deadly.} Qc8 {[%emt 0:02:15]} 13. h3 {[%emt 0:07:15] Dodges Ng4} (13. e5 {is more complex.} Ng4 14. e6 Ne3 15. exd7 Qxd7 16. Qb3) 13... h6 {[%emt 0:06:01]} 14. Bh4 {[%emt 0:00:12]} Nh7 {[%emt 0:00:09]} 15. Nf3 {[%emt 0:05:20]} Rb8 {[%emt 0:02:18]} 16. a4 {[%emt 0:07:12]} a6 {[%emt 0:04:37]} 17. e5 {[%emt 0:06:03]} b5 {[%emt 0:10:53]} 18. axb5 {[%emt 0:06:23]} axb5 {[%emt 0:00:06]} 19. b3 {[%emt 0:00:28] White is more active.} bxc4 {[%emt 0:10:27]} 20. bxc4 {[%emt 0:03:47]} g5 $2 {[%emt 0:05:38][%mdl 8192]} 21. Bg3 {[%emt 0:05:04] fxg5 is the strong threat.} Bxh3 {[%emt 0:10:22]} 22. fxg5 {[%emt 0:07:32]} (22. gxh3 Qxh3 23. Kf2 Rb2 $18) 22... hxg5 {[%emt 0:07:21]} 23. gxh3 {[%emt 0:02:28]} Qxh3 {[%emt 0:00:05]} 24. Kf2 {[%emt 0:01:15]} (24. exd6 $2 Qxg3+ 25. Kh1 exd6 $19 (25... Bxc3 $2 26. Ra3 $19)) 24... dxe5 {[%emt 0:02:39]} 25. Qd3 $2 {[%emt 0:11:08]} (25. Nxe5 Bxe5 26. Bxe5 Qf5+ 27. Kg2 Qxe5 $15) (25. Rh1 $18 {is the precise move to win.} Qg4 26. Qc2 (26. Bxe5 Bxe5 27. Nxe5 Qf4+ 28. Nf3 Nf6 $18)) 25... e4 $2 {[%emt 0:03:10][%mdl 8192]} 26. Nxe4 $18 {[%emt 0:00:12]} (26. Qxe4 $2 Nf6 (26... Bxc3 $2 27. Qe3 $17) 27. Bxc7 Nxe4+ 28. Nxe4 Bd4+ (28... Bxa1 $2 29. Rxa1 g4 30. Rg1 $19) 29. Nxd4 cxd4 $19) 26... Bxa1 {[%emt 0:01:41]} 27. Rxa1 {[%emt 0:01:24][%cal Bf1a1,Ba1a7,Ba7c7][%mdl 32]} e5 {[%emt 0:03:27]} 28. Ra7 {[%emt 0:01:26]} (28. Bxe5 Rxe5 29. Rg1 Ne8 $11 (29... Rf5 30. Ng3 $11)) 28... f5 {[%emt 0:01:50]} 29. Rxc7 {[%emt 0:01:57]} (29. Nxc5 e4 30. Nxg5 Nxg5 $19) ({Stronger than} 29. Nfxg5 fxe4 30. Nxe4 (30. Nxh3 exd3 31. Bxd3 Rb2+ 32. Kf1 Rb3 $11) 30... Rf8+ 31. Kg1 Ng5 32. Rxc7 (32. Nxg5 $2 Rb1+ 33. Qxb1 Qxg3+ 34. Kh1 Qh4+ 35. Kg1 Qxg5+ 36. Kh1 Qh4+ 37. Kg1 Qg3+ 38. Kh1 Qh3+ 39. Kg1 Kh8 $19) 32... Nxe4 $11) 29... fxe4 {[%emt 0:00:32]} 30. Qxe4 {[%emt 0:00:07]} Qh6 {[%emt 0:00:11] Prevents Qg6+.} 31. Bxe5 {[%emt 0:00:57]} Nf6 {[%emt 0:00:59]} 32. Qf5 {[%emt 0:01:46]} Rxe5 {[%emt 0:00:10]} 33. Nxe5 {[%emt 0:00:04][%cal Bf3e5,Be5d3,Bd3c1][%mdl 32] [#] Qe6+ would kill now.} Qh2+ {[%emt 0:00:56]} 34. Ke1 {[%emt 0:00:35]} Qg1+ {[%emt 0:01:00]} 35. Bf1 {[%emt 0:00:44]} Qe3+ {[%emt 0:02:30]} 36. Kd1 {[%emt 0:00:16]} Qd4+ {[%emt 0:02:40]} 37. Nd3 {[%emt 0:00:20] [#] Threatening mate with Qg6+.} Qa1+ {[%emt 0:00:29]} 38. Nc1 {[%emt 0:00:29] White wants to mate with Qg6+.} Qd4+ {[%emt 0:01:01]} 39. Bd3 {[%emt 0:00:17] White threatens Qg6+ and mate.} Qg1+ {[%emt 0:00:15]} 40. Qf1 {[%emt 0:01:05]} Qg4+ {[%emt 0:01:27]} 41. Qe2 {[%emt 0:30:59]} Qg1+ {[%emt 0:30:37]} 42. Kc2 {[%emt 0:00:07] Intending Qe6+ and mate.} Qd4 {[%emt 0:00:39]} 43. Qe6+ {[%emt 0:00:43]} Kh8 {[%emt 0:00:06]} 44. Rc8+ {[%emt 0:00:17]} Rxc8 {[%emt 0:00:04]} 45. Qxc8+ {[%emt 0:00:03]} Kg7 {[%emt 0:00:07]} 46. Qf5 {[%emt 0:00:11][%cal Oc1e2] Hoping for Ne2!} g4 {[%emt 0:00:41]} 47. Nb3 {[%emt 0:01:12] Black did not feel at home in the position after the opening.   Weighted Error Value: White=0.54/Black=0.75.  Loses game:     	---       	Black=2      Missed win:     	White=1     	---        Mistake:       	---       	Black=1      Inaccurate:     	---       	Black=3      OK:         	White=8     	Black=4      Best:        	White=1     	---} 1-0

[Event "Karel Janecek Open 2024"]
[Site "Prague"]
[Date "2024.02.28"]
[Round "1.14"]
[White "Belenkaya, Dina"]
[Black "Gierhardt, Vito"]
[Result "1-0"]
[ECO "C47"]
[WhiteElo "2202"]
[BlackElo "1689"]
[Annotator "RC"]
[PlyCount "61"]
[EventDate "2024.02.22"]
[EventType "swiss"]
[EventCountry "CZE"]
[SourceTitle "playchess.com"]
[Source "ChessBase"]
[SourceQuality "1"]
[TimeControl "40/5400+30:1800+30"]

1. e4 {[%emt 0:31:08]} e5 {[%emt 0:00:06]} 2. Nf3 {[%emt 0:00:08]} Nc6 {[%emt 0:00:07]} 3. d4 {[%emt 0:00:09]} exd4 {[%emt 0:00:08]} 4. Nxd4 {[%emt 0:00:04]} Nf6 {[%emt 0:00:07]} 5. Nc3 {[%emt 0:00:12]} Bb4 {[%emt 0:02:24]} 6. Nxc6 {[%emt 0:00:07]} bxc6 {[%emt 0:00:10]} 7. Bd3 {[%emt 0:00:06]} O-O {[%emt 0:01:50]} 8. O-O {[%emt 0:00:04]} Re8 {[%emt 0:02:58]} 9. Bg5 {[%emt 0:04:29]} h6 {[%emt 0:01:41]} 10. Bh4 {[%emt 0:01:05]} Be7 {[%emt 0:14:22]} 11. Bg3 {[%emt 0:05:12]} Rb8 {[%emt 0:09:47]} 12. b3 {[%emt 0:05:50]} Bb4 {[%emt 0:05:05]} 13. Na4 {[%emt 0:10:33]} Nxe4 {[%emt 0:04:12]} 14. Bxe4 {[%emt 0:08:50]} Rxe4 {[%emt 0:00:20]} 15. c4 {[%emt 0:01:42]} Be7 {[%emt 0:14:14]} 16. Qd2 {[%emt 0:04:32]} Bf6 {[%emt 0:03:15]} 17. Rad1 {[%emt 0:00:35]} d6 {[%emt 0:02:58]} 18. Qa5 {[%emt 0:03:31]} Re2 {[%emt 0:07:22]} 19. Rd2 {[%emt 0:07:32]} Rxd2 {[%emt 0:03:51]} 20. Qxd2 {[%emt 0:05:36]} c5 {[%emt 0:04:54]} 21. Qa5 {[%emt 0:02:10]} Bd7 {[%emt 0:04:44]} 22. Re1 {[%emt 0:05:40]} Bd4 {[%emt 0:03:14]} 23. h3 {[%emt 0:03:07]} Rb4 {[%emt 0:02:51]} 24. Qxa7 {[%emt 0:09:44]} Bc6 {[%emt 0:05:20]} 25. Re2 {[%emt 0:02:18]} Qg5 {[%emt 0:02:32]} 26. Kh2 {[%emt 0:03:07]} Be5 {[%emt 0:01:50]} 27. Qxc7 {[%emt 0:02:12]} Bb7 {[%emt 0:01:30]} 28. Nb6 {[%emt 0:03:15]} h5 {[%emt 0:00:31]} 29. Qxb7 {[%emt 0:00:59]} Bxg3+ {[%emt 0:01:19]} 30. fxg3 {[%emt 0:00:12]} Qd8 {[%emt 0:00:36]} 31. Qc8 {[%emt 0:00:25]} 1-0

[Event "Karel Janecek Open 2024"]
[Site "Prague"]
[Date "2024.02.28"]
[Round "1.15"]
[White "Csonka, Balasz"]
[Black "Botez, Alexandra"]
[Result "1-0"]
[ECO "E90"]
[WhiteElo "2480"]
[BlackElo "1977"]
[Annotator "TA"]
[PlyCount "67"]
[EventDate "2024.02.22"]
[EventType "swiss"]
[EventCountry "CZE"]
[SourceTitle "playchess.com"]
[Source "ChessBase"]
[SourceQuality "1"]
[TimeControl "40/5400+30:1800+30"]

{[%evp 21,67,78,113,31,20,0,80,77,87,89,121,70,138,55,120,144,136,132,212,188,247,229,240,240,543,544,626,539,545,543,540,553,544,540,611,598,616,562,580,515,641,598,982,988,2876,2164,29991,29992]} 1. Nf3 {[%emt 0:00:05]} Nf6 {[%emt 0:00:12]} 2. c4 {[%emt 0:00:10]} d6 {[%emt 0:00:24]} 3. Nc3 {[%emt 0:00:55]} g6 {[%emt 0:00:39]} 4. d4 {[%emt 0:00:34]} Bg7 {[%emt 0:00:08]} 5. e4 {[%emt 0:00:06]} O-O {[%emt 0:00:12]} 6. h3 {[%emt 0:00:29][%cal Bh2h3,Bh3h4][%mdl 32]} Nbd7 {[%emt 0:00:19]} 7. Be3 {[%emt 0:00:33]} e5 {[%emt 0:00:58]} 8. d5 {[%emt 0:00:43]} a5 {[%emt 0:00:59]} 9. g4 {[%emt 0:00:56]} Nc5 {[%emt 0:02:33]} 10. Nd2 {[%emt 0:00:53]} Ne8 {[%emt 0:09:39]} 11. h4 {[%emt 0:06:06]} f5 {[%emt 0:01:55]} 12. exf5 {[%emt 0:16:12]} ({Better is} 12. gxf5 $16 gxf5 13. h5) 12... gxf5 $14 {[%emt 0:00:18]} 13. g5 {[%emt 0:00:56]} Nd7 {[%emt 0:08:57] [#]} (13... e4 $11 {remains equal.}) 14. f3 $1 $16 {[%emt 0:03:40][%cal Bf2f3,Bf3f4][%mdl 32] White is more active. White leaves nothing to chance now. White is better.} e4 {[%emt 0:03:52] [#] aiming for ...f4.} 15. f4 $1 {[%emt 0:02:51]} ({Reject} 15. fxe4 a4 $11) 15... c5 {[%emt 0:08:15][%cal Oa5a4]} 16. Be2 {[%emt 0:03:39]} (16. a4 $16) 16... Nc7 {[%emt 0:01:52]} (16... a4 $1 $14) 17. Kf2 {[%emt 0:05:20]} (17. a4 $16) 17... Kh8 {[%emt 0:10:03]} (17... a4 $14) 18. a4 {[%emt 0:05:05]} Na6 {[%emt 0:03:11]} 19. Kg2 {[%emt 0:07:59]} Rg8 {[%emt 0:13:15]} (19... Nb4 $16) 20. Nf1 {[%emt 0:01:49]} Nb6 {[%emt 0:06:52]} (20... Bxc3 {was necessary.} 21. bxc3 Nb6) 21. Ng3 {[%emt 0:01:41]} Bxc3 {[%emt 0:14:03]} 22. bxc3 {[%emt 0:00:09]} Nb8 $2 {[%emt 0:06:56] [#]} (22... Qf8 23. Kh2 Nd7) 23. Bd4+ $1 $18 {[%emt 0:04:31][%mdl 512]} Rg7 {[%emt 0:01:24]} (23... cxd4 24. Qxd4+) 24. Nh5 {[%emt 0:00:17]} cxd4 {[%emt 0:00:40]} 25. Qxd4 {[%emt 0:00:08]} Qc7 {[%emt 0:00:13]} 26. Nxg7 {[%emt 0:00:11]} (26. Qxg7+ Qxg7 27. Nxg7 Kxg7 $11) 26... Qxg7 {[%emt 0:00:08]} 27. Qxb6 {[%emt 0:00:08]} Qe7 {[%emt 0:00:31] [#]} 28. c5 $1 {[%emt 0:02:21]} dxc5 {[%emt 0:02:46]} 29. d6 {[%emt 0:00:08]} Qd7 {[%emt 0:00:30]} 30. Bb5 {[%emt 0:03:26]} Qe6 {[%emt 0:02:08]} 31. Qxc5 {[%emt 0:03:44]} Nd7 {[%emt 0:00:13]} 32. Qd4+ {[%emt 0:00:05]} Kg8 {[%emt 0:00:16]} 33. Bc4 {[%emt 0:00:05]} Qxc4 {[%emt 0:00:05]} 34. Qxc4+ {[%emt 0:00:06] Weighted Error Value: White=0.31/Black=0.83.  Mistake:       	White=2     	Black=6      Inaccurate:     	---       	Black=3      OK:         	White=5     	Black=3      Strong:       	White=2     	---        Brilliant:      	White=1     	---} 1-0

[Event "Karel Janecek Open 2024"]
[Site "Prague"]
[Date "2024.02.28"]
[Round "1.16"]
[White "Kanakova, Natalie"]
[Black "Botez, Andrea"]
[Result "1-0"]
[ECO "E60"]
[WhiteElo "2169"]
[BlackElo "1709"]
[Annotator "RC"]
[PlyCount "85"]
[EventDate "2024.02.22"]
[EventType "swiss"]
[EventCountry "CZE"]
[SourceTitle "playchess.com"]
[Source "ChessBase"]
[SourceQuality "1"]
[TimeControl "40/5400+30:1800+30"]

1. Nf3 {[%emt 0:01:01]} Nf6 {[%emt 0:01:06]} 2. c4 {[%emt 0:00:16]} g6 {[%emt 0:00:24]} 3. b3 {[%emt 0:00:46]} Bg7 {[%emt 0:00:39]} 4. Bb2 {[%emt 0:00:07]} d6 {[%emt 0:01:01]} 5. d4 {[%emt 0:00:58]} O-O {[%emt 0:00:52]} 6. g3 {[%emt 0:02:06]} Nc6 {[%emt 0:04:24]} 7. d5 {[%emt 0:05:37]} Nb8 {[%emt 0:00:28]} 8. Bg2 {[%emt 0:02:08]} a5 {[%emt 0:05:50]} 9. O-O {[%emt 0:00:46]} Na6 {[%emt 0:00:31]} 10. Nc3 {[%emt 0:01:37]} Bd7 {[%emt 0:05:39]} 11. a3 {[%emt 0:05:49]} Ne4 {[%emt 0:20:33]} 12. Qc2 {[%emt 0:07:39]} Bf5 {[%emt 0:03:01]} 13. g4 {[%emt 0:01:49]} Nxf2 {[%emt 0:16:49]} 14. gxf5 {[%emt 0:00:22]} Ng4 {[%emt 0:00:06]} 15. Nd1 {[%emt 0:02:21]} c6 {[%emt 0:21:47]} 16. Bxg7 {[%emt 0:04:07]} Kxg7 {[%emt 0:00:06]} 17. h3 {[%emt 0:01:21]} Qb6+ {[%emt 0:01:46]} 18. e3 {[%emt 0:06:01]} Nf6 {[%emt 0:01:22]} 19. dxc6 {[%emt 0:01:44]} bxc6 {[%emt 0:00:01]} 20. Nd4 {[%emt 0:00:58]} Rac8 {[%emt 0:00:30]} 21. Nf2 {[%emt 0:02:35]} Nc5 {[%emt 0:01:59]} 22. Ng4 {[%emt 0:01:41]} Nxg4 {[%emt 0:06:40]} 23. hxg4 {[%emt 0:00:06]} Nd7 {[%emt 0:02:30]} 24. g5 {[%emt 0:02:28]} d5 {[%emt 0:02:39]} 25. Qc3 {[%emt 0:00:49]} Kg8 {[%emt 0:00:31]} 26. Rad1 {[%emt 0:03:14]} Rfe8 {[%emt 0:00:49]} 27. Qd2 {[%emt 0:04:34]} Qc5 {[%emt 0:00:29]} 28. Qf2 {[%emt 0:02:58]} Ne5 {[%emt 0:00:37]} 29. Qf4 {[%emt 0:01:34]} dxc4 {[%emt 0:00:07]} 30. bxc4 {[%emt 0:02:18]} Rf8 {[%emt 0:00:03]} 31. Nb3 {[%emt 0:04:09]} Qxc4 {[%emt 0:00:53]} 32. Qxe5 {[%emt 0:01:55]} Qxb3 {[%emt 0:00:02]} 33. fxg6 {[%emt 0:01:39]} hxg6 {[%emt 0:00:02]} 34. Rd4 {[%emt 0:00:35]} f6 {[%emt 0:02:05]} 35. gxf6 {[%emt 0:00:49]} exf6 {[%emt 0:00:02]} 36. Qg3 {[%emt 0:01:13]} Kg7 {[%emt 0:00:23]} 37. Be4 {[%emt 0:01:25]} Qf7 {[%emt 0:00:07]} 38. Bxg6 {[%emt 0:00:39]} Qc7 {[%emt 0:00:52]} 39. Qg4 {[%emt 0:01:53]} Rcd8 {[%emt 0:00:58]} 40. Be8+ {[%emt 0:01:05]} Kh8 {[%emt 0:00:22]} 41. Qh3+ {[%emt 0:00:34]} Qh7 {[%emt 0:00:39]} 42. Qxh7+ {[%emt 0:00:32]} Kxh7 {[%emt 0:00:03]} 43. Rxd8 {[%emt 0:00:08]} 1-0